Cogmind - Beta 16.1 @@@ ROGUE MODE // 2026.03.21 @ 22:43:14 Player: Ez Result: Destroyed by S-10 Pest with Light Assault Rifle Performance ------------- Evolutions (1) 500 Regions Visited (2) 400 Robots Destroyed (39) 195 Value Destroyed (1194) 1194 Prototype IDs (0) 0 Alien Tech Used (0) 0 Bonus (0) 0 TOTAL SCORE: 2289 Bonus ------- None Cogmind --------- Core Integrity 0/400 Matter 300/300 Energy 265/265 System Corruption 27% Temperature Cool (0) Movement Core (450) Ox8 Location -9/Materials Parts ------- > --- POWER (1) -------- Improved Ion Engine > --- PROPULSION (3) --- (None) > --- UTILITY (3) ------ Large Storage Unit Hacking Suite > --- WEAPON (2) ------- (None) > --- INVENTORY (15) --- Aluminum Leg Aluminum Leg Heat Sink Small Storage Unit ECM Suite Small Laser Light Assault Rifle Peak State ------------ > --- POWER ------------ Ion Engine > --- PROPULSION ------- Light Treads Light Treads Light Treads > --- UTILITY ---------- Large Storage Unit Light Armor Plating Hacking Suite > --- WEAPON ----------- Heavy Assault Rifle Mace > --- INVENTORY -------- Ion Engine Light Nuclear Core Light Treads Aluminum Leg Aluminum Leg Heat Sink Small Storage Unit Small Laser Light Assault Rifle [Rating: 14] Favorites ----------- Power Ion Engine Engine Ion Engine Power Core Light Nuclear Core Propulsion Light Treads Treads Light Treads Leg Aluminum Leg Utility Large Storage Unit Device Heat Sink Storage Large Storage Unit Hackware Hacking Suite Protection Light Armor Plating Weapon Assault Rifle Energy Gun Small Laser Ballistic Gun Assault Rifle Impact Weapon Mace Build | -11 -10 -9 ------- Run | Yrd Mat Mat Slots Evolved 2 | . . 2 Power . | . . . Propulsion 1 | . . 1 Utility 1 | . . 1 Weapon . | . . . Parts Attached 31 | 8 8 15 Power 8 | 1 3 4 Engine 6 | 1 2 3 Core 2 | . 1 1 Reactor . | . . . Propulsion 10 | 4 . 6 Treads 8 | 2 . 6 Leg 2 | 2 . . Wheel . | . . . Hover . | . . . Flight . | . . . Utility 6 | 1 2 3 Device 1 | . 1 . Storage 2 | 1 1 . Processor . | . . . Hackware 1 | . . 1 Protection 2 | . . 2 Artifact . | . . . Weapon 7 | 2 3 2 Energy Gun 1 | . 1 . Energy Cannon . | . . . Ballistic Gun 5 | 2 2 1 Ballistic Cannon . | . . . Launcher . | . . . Special Weapon . | . . . Impact Weapon 1 | . . 1 Slashing Weapon . | . . . Piercing Weapon . | . . . Special Melee Weapon . | . . . Unidentified Prototypes . | . . . Corrupted Parts 3 | . . 3 System Corruption 19 | . . 19 Parts Lost 21 | . 5 16 Power 6 | . 2 4 Propulsion 8 | . . 8 Utility 2 | . . 2 Weapon 5 | . 3 2 Highest Loss Streak 4 | . 2 4 To Critical Strikes . | . . . Average Backups 6 | 1 5 7 Power 1 | . 1 1 Propulsion 2 | . 2 2 Utility 1 | . 1 2 Weapon 1 | . . 1 Tool/Special . | . . . Unused Backups 2 | . . 2 Power . | . . . Propulsion . | . . . Utility 2 | . . 2 Weapon . | . . . Tool/Special . | . . . Average Slot Usage (%) 80 | . 84 75 Engine 8 | . 8 8 Core 2 | . 4 . Treads 16 | . 6 26 Leg 10 | . 21 . Device 2 | . 3 1 Storage 12 | . 14 11 Hackware 5 | . . 10 Protection 1 | . . 2 Energy Gun 2 | . 3 1 Ballistic Gun 13 | . 21 4 Impact Weapon 3 | . . 8 Peak Build Rating 14 | 6 10 14 Average Rating 8 | 5 6 10 On Entrance 4 | . 6 8 Avg Prop Armor Cover (%) . | . . . Naked Turns . | . . . Heaviest Build 33 | 12 29 33 Greatest Support 60 | 40 40 60 Greatest Overweight (x) 8 | . 1 8 Average Overweight (x) . | . . . Largest Inventory Capacity 15 | 8 15 15 Average Capacity 14 | 7 14 15 Most Carried 11 | 3 7 11 Average Carried 6 | 1 5 7 Final Capacity 15 | 8 15 15 Final Carried 7 | 3 6 7 Class Distribution -------------------- 78% | Mutant 21% | Scavenger-Mutant Dominant Class ---------------- Mutant | -10/Materials Mutant | -9/Materials Resources | -11 -10 -9 ----------- Run | Yrd Mat Mat Matter Collected 1022 | 89 470 463 Remotely . | . . . Salvage Created 1381 | . 565 816 Parts 74 | . 38 36 Haulers Intercepted . | . . . Recyclers Shooed . | . . . Parts Field Recycled . | . . . Retrieved Matter . | . . . Parts Self-Destructed . | . . . Prevented . | . . . Parts Restored . | . . . Kills | -11 -10 -9 ------- Run | Yrd Mat Mat Combat Hostiles Destroyed 32 | . 11 21 Melee 4 | . . 4 Guns 22 | . 11 11 Classes Destroyed 7 | . 4 3 Worker 1 | . . 1 Builder 1 | . 1 . Operator 3 | . 2 1 Watcher 2 | . 1 1 Swarmer 5 | . . 5 Grunt 19 | . 11 8 Sentry 8 | . . 8 Best Kill Streak 4 | . 4 4 Combat Bots Only 4 | . 4 4 Max Kills in Single Turn 1 | . 1 1 Gunslinging . | . . . Exploded . | . . . Melee 1 | . . 1 Uniques/NPCs Destroyed . | . . . Combat | -11 -10 -9 -------- Run | Yrd Mat Mat Hostile Shots Fired 359 | . 104 255 Missed 83 | . 26 57 Hits 276 | . 78 198 Projectile 276 | . 78 198 Critical Strikes 2 | . 1 1 Damage Taken 3097 | . 956 2141 Core 615 | . 212 403 Absorbed by Shields . | . . . Core Remaining (%) 57 | 100 15 . Volleys Fired 105 | . 61 44 Largest 2 | . 2 2 Hottest 60 | . 60 60 Shots Fired 172 | . 103 69 Gun 172 | . 103 69 Cannon . | . . . Launcher . | . . . Special . | . . . Kinetic 145 | . 92 53 Thermal 27 | . 11 16 Explosive . | . . . Electromagnetic . | . . . Robot Hit Streak 17 | . 11 17 Robot Miss Streak 4 | . 4 4 Penetration Max . | . . . Secondary Targets 1 | . 1 . Max Gunslinging Chain 1 | . 1 . Shots Hit Robots 146 | . 68 78 Core Hits 55 | . 27 28 Critical Kills . | . . . Critical Parts Destroyed 9 | . . 9 Critical Strikes 9 | . . 9 Smash 9 | . . 9 Melee Attacks 56 | . . 56 Impact 56 | . . 56 Slashing . | . . . Piercing . | . . . Sneak Attacks 3 | . . 3 Combat Hostiles . | . . . Follow-up Attacks . | . . . Damage Inflicted 2365 | . 831 1534 Guns 1339 | . 831 508 Cannons . | . . . Explosions . | . . . Melee 1026 | . . 1026 Ramming . | . . . Kinetic 1124 | . 731 393 Thermal 215 | . 100 115 Explosive . | . . . Electromagnetic . | . . . Impact 1026 | . . 1026 Slashing . | . . . Piercing . | . . . Highest Corruption 27 | . . 27 Average Corruption 14 | . . 14 Corruption Purged . | . . . Corruption Blocked . | . . . Effects 69 | . . 69 Message Errors 14 | . . 14 Matter Fused 17 | . . 17 Heat Flow Errors 10 | . . 10 Energy Discharges 9 | . . 9 Parts Rejected 1 | . . 1 Data Loss (minor) 11 | . . 11 Data Loss (major) 1 | . . 1 Misfires 1 | . . 1 Alerts 2 | . . 2 Misdirections 2 | . . 2 Weapon Failures 1 | . . 1 Overload Shots . | . . . Overflow Damage 344 | . . 344 Projectiles . | . . . Explosions . | . . . Melee 344 | . . 344 Knockbacks 6 | . . 6 Impact 6 | . . 6 Kinetic . | . . . Secondary . | . . . Self-Inflicted Damage . | . . . Shots . | . . . Rammed . | . . . Targets Rammed . | . . . Kicked . | . . . Crushed . | . . . Highest Temperature 268 | . 20 268 Average Temperature 88 | . 4 105 Received Heat Transfer 1092 | . 552 540 Effects 1 | . . 1 Interference 1 | . . 1 Siege Activations . | . . . Martial Activations . | . . . Shielding Activations . | . . . Robots Disrupted . | . . . Combat Hostiles . | . . . Robots Corrupted 8 | . . 8 Combat Hostiles 6 | . . 6 Parts Fried 8 | . . 8 Impact Corruptions 16 | . . 16 Robots Melted . | . . . Combat Hostiles . | . . . Parts Melted . | . . . Heat Transferred 475 | . 225 250 Parts Sabotaged . | . . . Parts Stolen . | . . . Parts Stripped . | . . . Power Chain Reactions . | . . . Alert | -11 -10 -9 ------- Run | Yrd Mat Mat Maximum Alert Level . | . . . Low Security (%) 100 | 100 100 100 Level 1 . | . . . Level 2 . | . . . Level 3 . | . . . Level 4 . | . . . Level 5 . | . . . High Security . | . . . Max Security . | . . . Peak Influence 126 | . 126 94 Initial 26 | . . 26 Average 29 | . 25 36 Influence Increases 1026 | . 355 671 Destroy 0b10 Robot/C 640 | . 220 420 Destroy 0b10 Robot/NC 35 | . 20 15 Destroy Leader 204 | . 72 132 Successful Hack 57 | . 11 46 Destroy Structure 15 | . 2 13 Lose Combat Pursuer 75 | . 30 45 Influence Decreases 1019 | . 292 727 Entered New Map 37 | . . 37 Time Decay 781 | . 261 520 Lost Part 191 | . 31 160 Lost Ally 10 | . . 10 Squads Dispatched 7 | . 4 3 Investigation 4 | . 2 2 Extermination . | . . . Reinforcement 3 | . 2 1 Assault . | . . . Garrison . | . . . Intercept . | . . . Searches Triggered . | . . . Construction Impeded . | . . . Haulers Reinforced . | . . . Active Scanning Responses . | . . . Cargo Convoy Interrupts . | . . . Stealth | -11 -10 -9 --------- Run | Yrd Mat Mat Distress Signals 3 | . 1 2 Communications Jammed . | . . . Distress Signals . | . . . Times Spotted 73 | . 27 46 Peak Tracking Total 6 | . 5 6 Tactical Retreats 5 | . 2 3 Traps | -11 -10 -9 ------- Run | Yrd Mat Mat Traps Triggered 6 | . 1 5 Indirectly . | . . . Trap Hack Attempts . | . . . Triggered . | . . . Disarmed . | . . . Reprogrammed . | . . . Reused . | . . . Traps Extracted . | . . . Installed . | . . . Triggered . | . . . Machines | -11 -10 -9 ---------- Run | Yrd Mat Mat Machines Disabled . | . . . Max in Single Turn . | . . . Machines Repaired . | . . . Machines Dismantled . | . . . Machines Sabotaged . | . . . Overloaded Fab Kills . | . . . Hacking | -11 -10 -9 --------- Run | Yrd Mat Mat Machines Accessed 17 | . 5 12 Terminals 17 | . 5 12 Fabricators . | . . . Repair Stations . | . . . Recycling Units . | . . . Scanalyzers . | . . . Garrison Access . | . . . Total Hacks 64 | . 17 47 Successful 36 | . 6 30 Failed 28 | . 11 17 Catastrophic 3 | . 3 . Database Lockouts . | . . . Manual 58 | . 16 42 Terminals 64 | . 17 47 Fabricators . | . . . Repair Stations . | . . . Recycling Units . | . . . Scanalyzers . | . . . Garrison Access . | . . . Terminal Hacks 17 | . 3 14 Record 1 | . 1 . Level Access Points 1 | . . 1 Emergency Access Points 1 | . . 1 Terminal Index 2 | . 1 1 Alert Level 1 | . . 1 Locate Traps 2 | . . 2 Dispatch Records 2 | . . 2 Maintenance Status 2 | . . 2 Reinforcement Status 1 | . . 1 Hauler Manifests 1 | . 1 . Zone Layout 2 | . . 2 Garrison Registry 1 | . . 1 Fabricator Hacks . | . . . Repair Station Hacks . | . . . Recycling Unit Hacks . | . . . Scanalyzer . | . . . Garrison Access Hacks . | . . . Unauthorized Hacks 19 | . 3 16 Terminals 19 | . 3 16 Track 1 | . . 1 Assimilate 9 | . 1 8 Botnet 7 | . 2 5 Detonate 1 | . . 1 Operators 1 | . . 1 Fabricators . | . . . Repair Stations . | . . . Recycling Units . | . . . Scanalyzers . | . . . Garrison Access . | . . . Data Cores Recovered . | . . . Used . | . . . Hacking Detections 14 | . 5 9 Full Trace Events 8 | . 4 4 Feedback Events 1 | . . 1 Corruption 1 | . . 1 Feedback Blocked . | . . . Robot Schematics Acquired . | . . . Robots Built . | . . . Authchips . | . . . Time . | . . . Total Robot Build Rating . | . . . Part Schematics Acquired . | . . . Parts Built . | . . . Authchips . | . . . Time . | . . . Total Part Build Rating . | . . . Part Studies Acquired . | . . . Parts Repaired . | . . . Time . | . . . Parts Recycled . | . . . Recycled Matter . | . . . Retrieved Matter . | . . . Retrieved Components . | . . . Parts Scanalyzed . | . . . Part Schematics Acquired . | . . . Parts Damaged . | . . . Bothacking | -11 -10 -9 ------------ Run | Yrd Mat Mat Used RIF Installer . | . . . Robots Hacked . | . . . Non-combat . | . . . Combat . | . . . Robot Hacks Applied . | . . . Relay Couplers Released . | . . . Fabnet Peak Effective % . | . . . Robots Rewired . | . . . Allies Hacked . | . . . Hacks Repelled . | . . . Allies | -11 -10 -9 -------- Run | Yrd Mat Mat Total Allies 1 | . . 1 Largest Group 1 | . . 1 Highest-Rated Group 10 | . . 10 Highest-Rated Ally 10 | . . 10 Total Orders . | . . . Ally Attacks . | . . . Total Damage . | . . . Kills . | . . . Allies Corrupted . | . . . Allies Melted . | . . . Intel | -11 -10 -9 ------- Run | Yrd Mat Mat Active Infowar (turns) . | . . . Robot Analysis Total . | . . . Derelict Logs Recovered . | . . . Drone Launches . | . . . Drone Recoveries . | . . . Exploration | -11 -10 -9 ------------- Run | Yrd Mat Mat Turns Passed 4329 | 130 2149 2050 Spaces Moved 1936 | 79 837 1020 Core 11 | 6 . 5 Treads 1341 | 55 271 1015 Legs 584 | 18 566 . Wheels . | . . . Hover . | . . . Flight . | . . . Fastest Speed 50 | 50 120 160 Average Speed 167 | 142 175 162 Slowest Speed 450 | 160 190 450 Overloaded Moves . | . . . Propulsion Burnouts . | . . . Robots Hopped . | . . . Potential Cave-ins . | . . . Cave-ins Triggered . | . . . Exploration Rate (%) 50 | 4 86 60 Regions Visited 2 Branch Regions . Pre-discovered Areas . | . . . Known Exits Taken . | . . . Unknown Exits Taken 2 | 1 1 . Scrap Searched . | . . . Spaces Dug 13 | . . 13 Terrain Destroyed 13 | . . 13 Melee 13 | . . 13 Projectile . | . . . AOE . | . . . Terrain Rammed . | . . . Walls Destroyed . | . . . Machines Disabled . | . . . Actions | -11 -10 -9 --------- Run | Yrd Mat Mat Total 2750 | 93 1412 1245 Wait 595 | . 497 98 Move 1934 | 78 836 1020 Hop . | . . . Pick Up 13 | 3 6 4 Fast Attach 20 | 6 3 11 Attach 11 | 2 3 6 Detach 6 | 2 . 4 Swap 8 | 2 5 1 Drop 2 | . 1 1 Fire 105 | . 61 44 Melee 56 | . . 56 Ram . | . . . Kick . | . . . Crush . | . . . Escape Stasis . | . . . Rewire . | . . . Trap . | . . . Miscellaneous . | . . . Route ------- -11/Scrapyard -10/Materials (discovered 4 exits: *Mat x3 / [*Min]) -9/Materials (discovered 6 exits: *Mat x3 / [*Min] / [*Sto x2]) History --------- Turn | Location | Event 51 | -11/Scrapyard | Discovered new exit (range 16) 131 | -11/Scrapyard | Entered Materials 303 | -10/Materials | Build established: Mutant 748 | -10/Materials | Discovered new exit (range 14) 1017 | -10/Materials | Discovered new exit (range 9) 1250 | -10/Materials | Core integrity fell below 50% 1582 | -10/Materials | Discovered new exit (range 7) 1839 | -10/Materials | Core integrity fell below 20% 1906 | -10/Materials | Discovered new exit (range 4) 2280 | -10/Materials | Entered another Materials area 2280 | -9/Materials | Evolved 2 slots: Propulsion x1, Utility x1 2347 | -9/Materials | Identified exit to Materials 2623 | -9/Materials | Build established: Scavenger-Mutant 2693 | -9/Materials | System corruption reached 10% 2904 | -9/Materials | Discovered new exit (range 11) 3067 | -9/Materials | Discovered new exit (range 7) 3382 | -9/Materials | Build established: Mutant 3654 | -9/Materials | Core integrity fell below 50% 3683 | -9/Materials | Lost 4 parts (1p3n) 4014 | -9/Materials | Discovered new exit (range 10) 4087 | -9/Materials | Core integrity fell below 20% 4330 | -9/Materials | Destroyed by S-10 Pest with Light Assault Rifle Last Messages --------------- Destroyed Wheel. K-01 Serf system corrupted by crushing effect. K-01 Serf knocked back. K-01 Serf system terminally corrupted. System corrupted: Energy discharge (-31). DU3S5HN